[Event "Late-Titled-Tuesday-Blitz-March-05-2024"]
[Site "Chess.com"]
[Date "2024.03.05"]
[Round "9"]
[White "HamedWafa4"]
[Black "Antipov_Mikhail_Al"]
[Result "1-0"]
[WhiteElo "2769"]
[BlackElo "2926"]
[TimeControl "180+1"]
[EndTime "15:41:26 PST"]
[Termination "HamedWafa4 won on time"]

1. e4 {[%clk 0:02:56.4]} 1... c5 {[%clk 0:02:58.7]} 2. Nf3 {[%clk 0:02:52.8]}
2... e6 {[%clk 0:02:58.8]} 3. d4 {[%clk 0:02:52.6]} 3... cxd4 {[%clk 0:02:57.9]}
4. Nxd4 {[%clk 0:02:53.5]} 4... a6 {[%clk 0:02:57.5]} 5. Bd3 {[%clk 0:02:53.3]}
5... Bc5 {[%clk 0:02:55.4]} 6. Nb3 {[%clk 0:02:53]} 6... Ba7 {[%clk 0:02:54.7]}
7. Nc3 {[%clk 0:02:50.9]} 7... Nc6 {[%clk 0:02:48.9]} 8. Qe2 {[%clk 0:02:49.3]}
8... Nge7 {[%clk 0:02:45.9]} 9. Be3 {[%clk 0:02:48.5]} 9... O-O {[%clk
0:02:43.1]} 10. O-O {[%clk 0:02:46.9]} 10... b5 {[%clk 0:02:40.8]} 11. Rfd1
{[%clk 0:02:45.3]} 11... Qc7 {[%clk 0:02:29.8]} 12. a4 {[%clk 0:02:31.7]} 12...
b4 {[%clk 0:02:27.3]} 13. Nb1 {[%clk 0:02:31.8]} 13... Bb8 {[%clk 0:02:17.7]}
14. g3 {[%clk 0:02:29.7]} 14... f5 {[%clk 0:02:12.6]} 15. N1d2 {[%clk
0:02:20.2]} 15... f4 {[%clk 0:02:07]} 16. Bxf4 {[%clk 0:02:17.1]} 16... Rxf4
{[%clk 0:02:04.9]} 17. gxf4 {[%clk 0:02:17.3]} 17... Qxf4 {[%clk 0:02:04.1]} 18.
Nf1 {[%clk 0:02:16.6]} 18... Ng6 {[%clk 0:01:52.3]} 19. Nbd2 {[%clk 0:02:08.4]}
19... Nce5 {[%clk 0:01:44.8]} 20. Qe3 {[%clk 0:02:04.5]} 20... Qh4 {[%clk
0:01:42.5]} 21. Ng3 {[%clk 0:01:55.5]} 21... Ng4 {[%clk 0:01:35.6]} 22. Nf3
{[%clk 0:01:43.4]} 22... Nxe3 {[%clk 0:01:35.3]} 23. Nxh4 {[%clk 0:01:43.4]}
23... Nxd1 {[%clk 0:01:36]} 24. Nxg6 {[%clk 0:01:43.8]} 24... hxg6 {[%clk
0:01:35]} 25. Rxd1 {[%clk 0:01:43.5]} 25... Bb7 {[%clk 0:01:34]} 26. Bc4 {[%clk
0:01:40.4]} 26... Bc6 {[%clk 0:01:33.2]} 27. b3 {[%clk 0:01:37.6]} 27... Kf7
{[%clk 0:01:32]} 28. f3 {[%clk 0:01:37.6]} 28... g5 {[%clk 0:01:28]} 29. Ne2
{[%clk 0:01:34.4]} 29... Be5 {[%clk 0:01:24.6]} 30. Nd4 {[%clk 0:01:32.6]} 30...
Bxd4+ {[%clk 0:01:16.4]} 31. Rxd4 {[%clk 0:01:33.5]} 31... a5 {[%clk 0:01:10.3]}
32. Kg2 {[%clk 0:01:33.1]} 32... Kf6 {[%clk 0:01:09.3]} 33. Kg3 {[%clk
0:01:31.1]} 33... Ke5 {[%clk 0:01:06]} 34. Rd1 {[%clk 0:01:26.9]} 34... Rh8
{[%clk 0:01:04.7]} 35. h3 {[%clk 0:01:06.7]} 35... d6 {[%clk 0:01:01]} 36. Rd2
{[%clk 0:01:02.7]} 36... Rh4 {[%clk 0:00:56.4]} 37. Rd1 {[%clk 0:00:59.6]} 37...
Rf4 {[%clk 0:00:55.1]} 38. Rd2 {[%clk 0:00:50.8]} 38... d5 {[%clk 0:00:54]} 39.
exd5 {[%clk 0:00:50.7]} 39... exd5 {[%clk 0:00:54.1]} 40. Bd3 {[%clk 0:00:47.5]}
40... Kd4 {[%clk 0:00:49.7]} 41. Re2 {[%clk 0:00:39.6]} 41... Kc3 {[%clk
0:00:45.1]} 42. Re6 {[%clk 0:00:36.9]} 42... Rf6 {[%clk 0:00:42.4]} 43. Re5
{[%clk 0:00:37.3]} 43... d4 {[%clk 0:00:40.2]} 44. Rxa5 {[%clk 0:00:19]} 44...
Bxf3 {[%clk 0:00:37.3]} 45. Rc5+ {[%clk 0:00:18.5]} 45... Kd2 {[%clk 0:00:36.4]}
46. a5 {[%clk 0:00:19.1]} 46... Be2 {[%clk 0:00:33.9]} 47. Bxe2 {[%clk 0:00:18]}
47... Kxe2 {[%clk 0:00:33.9]} 48. Rc4 {[%clk 0:00:18.5]} 48... Kd2 {[%clk
0:00:32.7]} 49. Rxd4+ {[%clk 0:00:18.1]} 49... Kxc2 {[%clk 0:00:32.1]} 50. Rxb4
{[%clk 0:00:18.6]} 50... Kc3 {[%clk 0:00:30.2]} 51. Rb6 {[%clk 0:00:18.8]} 1-0

[Event "Late-Titled-Tuesday-Blitz-March-05-2024"]
[Site "Chess.com"]
[Date "2024.03.05"]
[Round "9"]
[White "Zhigalko_Sergei"]
[Black "Shahdad2007"]
[Result "1-0"]
[WhiteElo "2866"]
[BlackElo "2592"]
[TimeControl "180+1"]
[EndTime "15:41:32 PST"]
[Termination "Zhigalko_Sergei won by checkmate"]

1. e4 {[%clk 0:03:00.9]} 1... g6 {[%clk 0:03:00]} 2. d4 {[%clk 0:03:00.2]} 2...
Bg7 {[%clk 0:03:00]} 3. Nc3 {[%clk 0:03:00]} 3... d6 {[%clk 0:02:59.7]} 4. Nf3
{[%clk 0:02:59.7]} 4... a6 {[%clk 0:02:55.8]} 5. Be3 {[%clk 0:02:59.4]} 5... b5
{[%clk 0:02:54.7]} 6. a4 {[%clk 0:02:59.9]} 6... b4 {[%clk 0:02:54.4]} 7. Ne2
{[%clk 0:03:00.5]} 7... Bb7 {[%clk 0:02:54]} 8. Ng3 {[%clk 0:03:00.6]} 8... Nf6
{[%clk 0:02:54.1]} 9. Bd3 {[%clk 0:03:00.2]} 9... Nbd7 {[%clk 0:02:51.9]} 10. a5
{[%clk 0:02:57.4]} 10... O-O {[%clk 0:02:50.1]} 11. O-O {[%clk 0:02:57.2]} 11...
Rc8 {[%clk 0:02:48.4]} 12. c3 {[%clk 0:02:54.3]} 12... bxc3 {[%clk 0:02:40.8]}
13. bxc3 {[%clk 0:02:54.3]} 13... c5 {[%clk 0:02:41.4]} 14. Qe2 {[%clk
0:02:53.9]} 14... Ra8 {[%clk 0:02:25.3]} 15. h3 {[%clk 0:02:36.7]} 15... Qc8
{[%clk 0:02:24.5]} 16. Rfb1 {[%clk 0:02:32.7]} 16... c4 {[%clk 0:02:20.1]} 17.
Bc2 {[%clk 0:02:31.1]} 17... Ne8 {[%clk 0:02:16]} 18. Nd2 {[%clk 0:02:26.4]}
18... d5 {[%clk 0:02:12.7]} 19. Bf4 {[%clk 0:01:39.7]} 19... Nc7 {[%clk
0:01:23.9]} 20. Bxc7 {[%clk 0:01:13.8]} 20... Qxc7 {[%clk 0:01:24.8]} 21. exd5
{[%clk 0:01:13.6]} 21... Bxd5 {[%clk 0:01:25.4]} 22. Qxe7 {[%clk 0:01:11.5]}
22... Rfe8 {[%clk 0:01:25.3]} 23. Qa3 {[%clk 0:00:49.8]} 23... Bf8 {[%clk
0:01:23.5]} 24. Qc1 {[%clk 0:00:47.3]} 24... Nf6 {[%clk 0:01:23.1]} 25. Rb6
{[%clk 0:00:40.8]} 25... Bd6 {[%clk 0:01:22.9]} 26. Ndf1 {[%clk 0:00:39.4]}
26... Bf4 {[%clk 0:01:18.5]} 27. Qd1 {[%clk 0:00:31.4]} 27... Nd7 {[%clk
0:01:14.3]} 28. Rb2 {[%clk 0:00:26.3]} 28... Re7 {[%clk 0:01:14.1]} 29. Ne2
{[%clk 0:00:18.4]} 29... Bd6 {[%clk 0:01:12.9]} 30. Ne3 {[%clk 0:00:18.3]} 30...
Rxe3 {[%clk 0:01:12.3]} 31. fxe3 {[%clk 0:00:18.1]} 31... Re8 {[%clk 0:01:11.4]}
32. e4 {[%clk 0:00:14.9]} 32... Rxe4 {[%clk 0:01:09.9]} 33. Bxe4 {[%clk
0:00:13.8]} 33... Bxe4 {[%clk 0:01:10.8]} 34. Qf1 {[%clk 0:00:12.3]} 34... Bd3
{[%clk 0:01:06.5]} 35. Qf2 {[%clk 0:00:12.2]} 35... f5 {[%clk 0:01:00.3]} 36.
Qf3 {[%clk 0:00:12]} 36... Be4 {[%clk 0:00:58.7]} 37. Qf2 {[%clk 0:00:11.7]}
37... Nf6 {[%clk 0:00:58.8]} 38. Rb6 {[%clk 0:00:09.3]} 38... Nd5 {[%clk
0:00:51.2]} 39. Rxa6 {[%clk 0:00:06]} 39... Bf4 {[%clk 0:00:49.2]} 40. Nxf4
{[%clk 0:00:05]} 40... Nxf4 {[%clk 0:00:50.1]} 41. Re1 {[%clk 0:00:02.5]} 41...
Nd3 {[%clk 0:00:48.4]} 42. Qe3 {[%clk 0:00:02.2]} 42... Nxe1 {[%clk 0:00:43.7]}
43. Qxe1 {[%clk 0:00:03.1]} 43... Qb7 {[%clk 0:00:23.4]} 44. Rb6 {[%clk
0:00:03.1]} 44... Qa7 {[%clk 0:00:23.8]} 45. Qe2 {[%clk 0:00:02.7]} 45... Qxa5
{[%clk 0:00:22]} 46. Qxc4+ {[%clk 0:00:02.8]} 46... Kg7 {[%clk 0:00:22.4]} 47.
Qc7+ {[%clk 0:00:03]} 47... Kh6 {[%clk 0:00:15.2]} 48. Rxg6+ {[%clk 0:00:03.3]}
48... hxg6 {[%clk 0:00:14.3]} 49. Qxa5 {[%clk 0:00:04.2]} 49... f4 {[%clk
0:00:14.7]} 50. Qc7 {[%clk 0:00:05.1]} 50... f3 {[%clk 0:00:15.2]} 51. Qf4+
{[%clk 0:00:05.1]} 51... g5 {[%clk 0:00:15.8]} 52. Qxe4 {[%clk 0:00:05.9]} 52...
f2+ {[%clk 0:00:16.3]} 53. Kxf2 {[%clk 0:00:06.3]} 53... g4 {[%clk 0:00:17]} 54.
Qxg4 {[%clk 0:00:06.3]} 54... Kh7 {[%clk 0:00:17.4]} 55. Kf3 {[%clk 0:00:07.1]}
55... Kh6 {[%clk 0:00:18.3]} 56. Kf4 {[%clk 0:00:08]} 56... Kh7 {[%clk
0:00:19.2]} 57. Kf5 {[%clk 0:00:08.7]} 57... Kh6 {[%clk 0:00:20.1]} 58. Kf6
{[%clk 0:00:09.4]} 58... Kh7 {[%clk 0:00:21]} 59. Qg7# {[%clk 0:00:09.1]} 1-0

[Event "Late-Titled-Tuesday-Blitz-March-05-2024"]
[Site "Chess.com"]
[Date "2024.03.05"]
[Round "9"]
[White "Mikhal867"]
[Black "Squirlolz"]
[Result "0-1"]
[WhiteElo "2498"]
[BlackElo "2602"]
[TimeControl "180+1"]
[EndTime "15:41:35 PST"]
[Termination "Squirlolz won on time"]

1. d4 {[%clk 0:02:59.4]} 1... Nf6 {[%clk 0:02:59.9]} 2. c4 {[%clk 0:02:58.7]}
2... c5 {[%clk 0:03:00.5]} 3. Nf3 {[%clk 0:02:57.5]} 3... e6 {[%clk 0:02:59.5]}
4. Nc3 {[%clk 0:02:55.4]} 4... cxd4 {[%clk 0:02:59.7]} 5. Nxd4 {[%clk
0:02:55.1]} 5... Bb4 {[%clk 0:03:00.5]} 6. Bd2 {[%clk 0:02:46.9]} 6... O-O
{[%clk 0:02:59.7]} 7. Nc2 {[%clk 0:02:43.2]} 7... Be7 {[%clk 0:02:57.9]} 8. e4
{[%clk 0:02:42.3]} 8... d5 {[%clk 0:02:47.4]} 9. e5 {[%clk 0:02:42.2]} 9... d4
{[%clk 0:02:30.2]} 10. exf6 {[%clk 0:02:27.1]} 10... dxc3 {[%clk 0:02:31.1]} 11.
fxe7 {[%clk 0:02:18.1]} 11... cxd2+ {[%clk 0:02:32]} 12. Qxd2 {[%clk 0:02:18]}
12... Qxe7 {[%clk 0:02:32.7]} 13. Rd1 {[%clk 0:02:07.7]} 13... Nc6 {[%clk
0:02:30.6]} 14. Be2 {[%clk 0:02:01]} 14... e5 {[%clk 0:02:29.4]} 15. O-O {[%clk
0:01:55.9]} 15... Be6 {[%clk 0:02:25.7]} 16. Qd6 {[%clk 0:01:49.7]} 16... Qxd6
{[%clk 0:02:17]} 17. Rxd6 {[%clk 0:01:49.2]} 17... Rfd8 {[%clk 0:02:17.8]} 18.
Rfd1 {[%clk 0:01:48.8]} 18... Rxd6 {[%clk 0:02:10.6]} 19. Rxd6 {[%clk 0:01:48]}
19... Kf8 {[%clk 0:02:11.5]} 20. b3 {[%clk 0:01:43.4]} 20... Ke7 {[%clk
0:02:11.2]} 21. Rd2 {[%clk 0:01:39.9]} 21... f5 {[%clk 0:02:02.7]} 22. Kf1
{[%clk 0:01:34.2]} 22... a5 {[%clk 0:01:58.1]} 23. Ke1 {[%clk 0:01:20]} 23... g5
{[%clk 0:01:54.7]} 24. c5 {[%clk 0:01:05.6]} 24... a4 {[%clk 0:01:49.2]} 25. b4
{[%clk 0:01:03.9]} 25... Bxa2 {[%clk 0:01:45.6]} 26. b5 {[%clk 0:01:03.6]} 26...
Na5 {[%clk 0:01:38.6]} 27. Nb4 {[%clk 0:01:02.6]} 27... Be6 {[%clk 0:01:36.1]}
28. c6 {[%clk 0:00:58.8]} 28... bxc6 {[%clk 0:01:32.1]} 29. bxc6 {[%clk
0:00:57.6]} 29... Nb3 {[%clk 0:01:17]} 30. Ra2 {[%clk 0:00:50.7]} 30... Nd4
{[%clk 0:01:13.1]} 31. Ra3 {[%clk 0:00:47.5]} 31... Kd6 {[%clk 0:01:10.8]} 32.
Bd1 {[%clk 0:00:44]} 32... Bb3 {[%clk 0:00:46.5]} 33. Bxb3 {[%clk 0:00:36.9]}
33... axb3 {[%clk 0:00:29.2]} 34. Rxa8 {[%clk 0:00:30.8]} 34... b2 {[%clk
0:00:29.6]} 35. Rd8+ {[%clk 0:00:29.8]} 35... Kc7 {[%clk 0:00:26.8]} 36. Nd5+
{[%clk 0:00:08.5]} 36... Kxd8 {[%clk 0:00:24.9]} 37. Nc3 {[%clk 0:00:08.6]}
37... Kc7 {[%clk 0:00:19.2]} 38. Kd2 {[%clk 0:00:08.3]} 38... Kxc6 {[%clk
0:00:19.7]} 39. g3 {[%clk 0:00:07.9]} 39... Kd6 {[%clk 0:00:16]} 40. Kd3 {[%clk
0:00:07.8]} 40... Ke6 {[%clk 0:00:12.8]} 41. h4 {[%clk 0:00:07.5]} 41... gxh4
{[%clk 0:00:12.5]} 42. gxh4 {[%clk 0:00:07.5]} 42... Nb5 {[%clk 0:00:09.7]} 43.
Nb1 {[%clk 0:00:06.9]} 43... e4+ {[%clk 0:00:09.8]} 44. Kc2 {[%clk 0:00:06.8]}
44... Ke5 {[%clk 0:00:07.6]} 45. Kxb2 {[%clk 0:00:07]} 45... Kf4 {[%clk
0:00:08.2]} 46. Kc2 {[%clk 0:00:06.3]} 46... Kf3 {[%clk 0:00:08.3]} 47. Nd2+
{[%clk 0:00:05.2]} 47... Kxf2 {[%clk 0:00:08.7]} 48. Nc4 {[%clk 0:00:05.3]}
48... e3 {[%clk 0:00:08.9]} 49. Ne5 {[%clk 0:00:04.3]} 49... e2 {[%clk 0:00:09]}
50. Nd3+ {[%clk 0:00:04.5]} 50... Kf1 {[%clk 0:00:08.8]} 51. Kd2 {[%clk
0:00:04.7]} 51... f4 {[%clk 0:00:09]} 52. Ne1 {[%clk 0:00:04.8]} 52... Nd4
{[%clk 0:00:07.6]} 53. h5 {[%clk 0:00:04.5]} 53... f3 {[%clk 0:00:07.7]} 54. Nd3
{[%clk 0:00:02.9]} 54... f2 {[%clk 0:00:07.3]} 0-1

[Event "Late-Titled-Tuesday-Blitz-March-05-2024"]
[Site "Chess.com"]
[Date "2024.03.05"]
[Round "9"]
[White "Pelusiansky"]
[Black "the_blue_pill"]
[Result "0-1"]
[WhiteElo "2561"]
[BlackElo "2452"]
[TimeControl "180+1"]
[EndTime "15:41:36 PST"]
[Termination "the_blue_pill won by resignation"]

1. d4 {[%clk 0:02:58.1]} 1... d5 {[%clk 0:02:57.5]} 2. c4 {[%clk 0:02:58.5]}
2... e6 {[%clk 0:02:57.8]} 3. Nc3 {[%clk 0:02:58.8]} 3... c5 {[%clk 0:02:58.3]}
4. cxd5 {[%clk 0:02:57.8]} 4... exd5 {[%clk 0:02:59.2]} 5. Nf3 {[%clk
0:02:57.8]} 5... Nc6 {[%clk 0:02:59.9]} 6. g3 {[%clk 0:02:58]} 6... Nf6 {[%clk
0:03:00]} 7. Bg2 {[%clk 0:02:58.5]} 7... cxd4 {[%clk 0:03:00.9]} 8. Nxd4 {[%clk
0:02:58.7]} 8... Bc5 {[%clk 0:03:01.5]} 9. Nb3 {[%clk 0:02:58.1]} 9... Bb6
{[%clk 0:03:01.7]} 10. O-O {[%clk 0:02:58.4]} 10... d4 {[%clk 0:03:02]} 11. Na4
{[%clk 0:02:58.6]} 11... O-O {[%clk 0:03:02.5]} 12. h3 {[%clk 0:02:56.4]} 12...
Re8 {[%clk 0:03:00.2]} 13. Bg5 {[%clk 0:02:43.2]} 13... h6 {[%clk 0:02:57]} 14.
Bxf6 {[%clk 0:02:35.2]} 14... Qxf6 {[%clk 0:02:57.9]} 15. Nxb6 {[%clk
0:02:34.8]} 15... axb6 {[%clk 0:02:50.6]} 16. Qd2 {[%clk 0:02:34.9]} 16... Be6
{[%clk 0:02:46]} 17. Rfd1 {[%clk 0:02:27.7]} 17... Rad8 {[%clk 0:02:34.3]} 18.
Nc1 {[%clk 0:02:21.4]} 18... h5 {[%clk 0:02:24.1]} 19. Nd3 {[%clk 0:02:18.4]}
19... h4 {[%clk 0:02:23.4]} 20. Qf4 {[%clk 0:02:11.8]} 20... Bf5 {[%clk
0:02:10.6]} 21. g4 {[%clk 0:01:54.8]} 21... Bxd3 {[%clk 0:01:56.5]} 22. Qxf6
{[%clk 0:01:54.5]} 22... gxf6 {[%clk 0:01:57.1]} 23. exd3 {[%clk 0:01:55.1]}
23... Re2 {[%clk 0:01:56.6]} 24. b4 {[%clk 0:01:50.3]} 24... Nxb4 {[%clk
0:01:51.8]} 25. Rab1 {[%clk 0:01:42.2]} 25... Nxa2 {[%clk 0:01:45.6]} 26. Rxb6
{[%clk 0:01:41.7]} 26... Nc3 {[%clk 0:01:40.5]} 27. Ra1 {[%clk 0:01:40]} 27...
Rde8 {[%clk 0:01:31.1]} 28. Rxb7 {[%clk 0:01:30.1]} 28... Re1+ {[%clk
0:01:30.7]} 29. Rxe1 {[%clk 0:01:30.1]} 29... Rxe1+ {[%clk 0:01:29.8]} 30. Kh2
{[%clk 0:01:24]} 30... Re2 {[%clk 0:01:23.8]} 31. Rd7 {[%clk 0:01:15.2]} 31...
Rxf2 {[%clk 0:01:17.2]} 32. Rxd4 {[%clk 0:01:14.7]} 32... Ne2 {[%clk 0:01:14.3]}
33. Rc4 {[%clk 0:01:05]} 33... Nf4 {[%clk 0:01:05.9]} 34. Kg1 {[%clk 0:00:53.5]}
34... Rxg2+ {[%clk 0:01:03.3]} 35. Kf1 {[%clk 0:00:53.8]} 35... Rg3 {[%clk
0:00:54.4]} 36. Rxf4 {[%clk 0:00:53.5]} 36... Rxd3 {[%clk 0:00:51.5]} 37. Rxf6
{[%clk 0:00:52.7]} 37... Rxh3 {[%clk 0:00:49.8]} 38. Rh6 {[%clk 0:00:47.8]}
38... Kg7 {[%clk 0:00:46.7]} 39. g5 {[%clk 0:00:44.5]} 39... Rg3 {[%clk
0:00:40.1]} 40. Rxh4 {[%clk 0:00:43.4]} 40... Rxg5 {[%clk 0:00:40.3]} 41. Ra4
{[%clk 0:00:40.5]} 41... Kg6 {[%clk 0:00:40.4]} 42. Ra6+ {[%clk 0:00:39.8]}
42... f6 {[%clk 0:00:40.2]} 43. Kf2 {[%clk 0:00:40.5]} 43... Rb5 {[%clk
0:00:39.2]} 44. Kf3 {[%clk 0:00:40]} 44... Kg5 {[%clk 0:00:37.9]} 45. Ra8 {[%clk
0:00:40.3]} 45... Rb3+ {[%clk 0:00:37.9]} 46. Kf2 {[%clk 0:00:40.7]} 46... f5
{[%clk 0:00:38.3]} 47. Rg8+ {[%clk 0:00:40.9]} 47... Kf4 {[%clk 0:00:38.5]} 48.
Ra8 {[%clk 0:00:40.1]} 48... Rb2+ {[%clk 0:00:38.9]} 49. Kf1 {[%clk 0:00:40.1]}
49... Kg4 {[%clk 0:00:39.2]} 50. Rg8+ {[%clk 0:00:38.8]} 50... Kf3 {[%clk
0:00:38.1]} 51. Ke1 {[%clk 0:00:38.7]} 51... Rb1+ {[%clk 0:00:34.1]} 52. Kd2
{[%clk 0:00:39]} 52... f4 {[%clk 0:00:34.6]} 53. Ra8 {[%clk 0:00:34.9]} 53...
Kf2 {[%clk 0:00:30.3]} 54. Rf8 {[%clk 0:00:22.6]} 54... f3 {[%clk 0:00:30.1]}
55. Rg8 {[%clk 0:00:23]} 55... Rb7 {[%clk 0:00:26.6]} 56. Kd1 {[%clk 0:00:20.4]}
56... Rd7+ {[%clk 0:00:26.2]} 57. Kc2 {[%clk 0:00:20.2]} 57... Ke2 {[%clk
0:00:26.5]} 58. Re8+ {[%clk 0:00:20.5]} 58... Kf1 {[%clk 0:00:26.7]} 59. Rf8
{[%clk 0:00:20.1]} 59... f2 {[%clk 0:00:27]} 60. Rg8 {[%clk 0:00:20.3]} 60...
Rd5 {[%clk 0:00:24.5]} 61. Rg4 {[%clk 0:00:19.3]} 61... Ke2 {[%clk 0:00:22.6]}
62. Re4+ {[%clk 0:00:19.3]} 62... Kf3 {[%clk 0:00:21.5]} 63. Re8 {[%clk
0:00:19.6]} 63... f1=Q {[%clk 0:00:21.2]} 64. Rf8+ {[%clk 0:00:19.5]} 64... Kg2
{[%clk 0:00:20.4]} 65. Rxf1 {[%clk 0:00:19.2]} 65... Kxf1 {[%clk 0:00:20.3]} 0-1

[Event "Late-Titled-Tuesday-Blitz-March-05-2024"]
[Site "Chess.com"]
[Date "2024.03.05"]
[Round "9"]
[White "ljuks68"]
[Black "Bilan_Danila"]
[Result "1-0"]
[WhiteElo "2450"]
[BlackElo "2532"]
[TimeControl "180+1"]
[EndTime "15:41:38 PST"]
[Termination "ljuks68 won by resignation"]

1. e4 {[%clk 0:03:00.9]} 1... c6 {[%clk 0:02:56.6]} 2. d4 {[%clk 0:03:00.6]}
2... d5 {[%clk 0:02:56.7]} 3. e5 {[%clk 0:03:01.3]} 3... c5 {[%clk 0:02:56.9]}
4. Nf3 {[%clk 0:03:01]} 4... Nc6 {[%clk 0:02:57.1]} 5. c4 {[%clk 0:03:01.4]}
5... e6 {[%clk 0:02:56.7]} 6. Nc3 {[%clk 0:03:00.8]} 6... Nge7 {[%clk
0:02:56.4]} 7. dxc5 {[%clk 0:02:58.3]} 7... Ng6 {[%clk 0:02:32.6]} 8. cxd5
{[%clk 0:02:56]} 8... exd5 {[%clk 0:02:31.4]} 9. Qxd5 {[%clk 0:02:42.8]} 9...
Be6 {[%clk 0:02:22.5]} 10. Qxd8+ {[%clk 0:02:42.7]} 10... Rxd8 {[%clk
0:02:23.4]} 11. Bg5 {[%clk 0:02:42.6]} 11... Rd7 {[%clk 0:02:16.1]} 12. Bb5
{[%clk 0:02:28.9]} 12... Bxc5 {[%clk 0:02:14.1]} 13. Bxc6 {[%clk 0:02:21.4]}
13... bxc6 {[%clk 0:02:13.8]} 14. O-O {[%clk 0:02:21.1]} 14... Bg4 {[%clk
0:02:01.4]} 15. Ne4 {[%clk 0:01:57.4]} 15... Be7 {[%clk 0:01:44.4]} 16. Nd6+
{[%clk 0:00:52.9]} 16... Bxd6 {[%clk 0:01:32.9]} 17. exd6 {[%clk 0:00:53.2]}
17... Bxf3 {[%clk 0:01:32.6]} 18. gxf3 {[%clk 0:00:53.4]} 18... Rxd6 {[%clk
0:01:30.9]} 19. Rad1 {[%clk 0:00:48.2]} 19... Rxd1 {[%clk 0:01:10.1]} 20. Rxd1
{[%clk 0:00:47.8]} 20... f6 {[%clk 0:01:11]} 21. Be3 {[%clk 0:00:47.8]} 21...
Ke7 {[%clk 0:01:11]} 22. Bxa7 {[%clk 0:00:47.2]} 22... Ke6 {[%clk 0:01:09.4]}
23. Bc5 {[%clk 0:00:41.5]} 23... Ra8 {[%clk 0:01:07.2]} 24. a3 {[%clk
0:00:37.9]} 24... Ne5 {[%clk 0:00:53.9]} 25. f4 {[%clk 0:00:34.4]} 25... Nc4
{[%clk 0:00:53.5]} 26. b3 {[%clk 0:00:34.3]} 26... Na5 {[%clk 0:00:49.8]} 27.
Rd6+ {[%clk 0:00:11.8]} 27... Kf5 {[%clk 0:00:49.9]} 28. b4 {[%clk 0:00:12.3]}
28... Nc4 {[%clk 0:00:49.5]} 29. Rxc6 {[%clk 0:00:11.8]} 29... Rxa3 {[%clk
0:00:41.7]} 30. b5 {[%clk 0:00:11]} 30... Rb3 {[%clk 0:00:33.4]} 31. b6 {[%clk
0:00:08.8]} 31... Kxf4 {[%clk 0:00:28]} 32. Kg2 {[%clk 0:00:07.9]} 32... h5
{[%clk 0:00:21.6]} 33. Bd4 {[%clk 0:00:07.7]} 33... Ne5 {[%clk 0:00:10.6]} 34.
Rc7 {[%clk 0:00:06.7]} 34... Rb4 {[%clk 0:00:08.8]} 35. b7 {[%clk 0:00:06.3]}
35... g5 {[%clk 0:00:06.4]} 36. Be3+ {[%clk 0:00:05.4]} 36... Kg4 {[%clk
0:00:04.8]} 37. Ba7 {[%clk 0:00:05.6]} 37... Nd3 {[%clk 0:00:03.9]} 38. h3+
{[%clk 0:00:05.4]} 38... Kf5 {[%clk 0:00:03.3]} 39. b8=Q {[%clk 0:00:05.4]}
39... Nf4+ {[%clk 0:00:04.2]} 40. Kh2 {[%clk 0:00:04]} 40... Rxb8 {[%clk
0:00:04.2]} 41. Bxb8 {[%clk 0:00:04]} 41... Nd3 {[%clk 0:00:05.1]} 42. Ba7
{[%clk 0:00:03.8]} 42... Ke4 {[%clk 0:00:05.6]} 43. Be3 {[%clk 0:00:03.8]} 43...
g4 {[%clk 0:00:05.5]} 44. Re7+ {[%clk 0:00:04.5]} 44... Kf3 {[%clk 0:00:05.1]}
45. hxg4 {[%clk 0:00:05.2]} 45... hxg4 {[%clk 0:00:06]} 46. Rf7 {[%clk
0:00:04.9]} 46... g3+ {[%clk 0:00:05.7]} 47. fxg3 {[%clk 0:00:04.7]} 47... Kxe3
{[%clk 0:00:04.9]} 48. Rxf6 {[%clk 0:00:05.3]} 48... Ne5 {[%clk 0:00:05.8]} 49.
Re6 {[%clk 0:00:05.3]} 49... Ke4 {[%clk 0:00:06.7]} 50. Re8 {[%clk 0:00:05.4]}
50... Kf5 {[%clk 0:00:07.2]} 51. Kh3 {[%clk 0:00:05.9]} 51... Nf3 {[%clk
0:00:07.8]} 52. Rf8+ {[%clk 0:00:06.1]} 52... Ke4 {[%clk 0:00:08.7]} 53. Rf4+
{[%clk 0:00:06.4]} 53... Ke3 {[%clk 0:00:08.8]} 54. Kg4 {[%clk 0:00:06.8]} 54...
Ne5+ {[%clk 0:00:09.2]} 55. Kh5 {[%clk 0:00:07.1]} 55... Nd3 {[%clk 0:00:09.9]}
56. Rf8 {[%clk 0:00:07.1]} 56... Ke4 {[%clk 0:00:09.4]} 57. g4 {[%clk
0:00:07.5]} 57... Ke5 {[%clk 0:00:10.1]} 58. g5 {[%clk 0:00:07.8]} 1-0